Cogmind - Beta 16 @@@ ROGUE MODE // 2025.10.27 @ 12:44:00 Player: Jack Result: Destroyed by Combat Programmer with EMDS Performance ------------- Evolutions (9) 4500 Regions Visited (27) 5400 Robots Destroyed (85) 425 Value Destroyed (2071) 2071 Prototype IDs (38) 760 Alien Tech Used (2) 400 Bonus (13261) 13261 TOTAL SCORE: 26817 Bonus ------- Follower Combat Kills 1263 Aligned with FarCom 300 Met Zhirov 300 Met Warlord at Base 500 MAIN.C Attacked Warlord 500 Built Enhanced Grunts 300 A7 Reached Mainframe 300 Met R17 at Cetus 500 Met Warlord at Research 2000 Met MAIN.C 5000 Hacked MAIN.C 300 Met Warlord at Command 2000 Friendly Fire -2 Cogmind --------- Core Integrity 0/1600 Matter 246/300 Energy 99/100 System Corruption 41% Temperature Cool (0) Movement Core (50) Location -1/Command Parts ------- > --- POWER (1) -------- (None) > --- PROPULSION (8) --- (None) > --- UTILITY (14) ----- Hacking Suite Hacking Suite Advanced Hacking Suite > --- WEAPON (2) ------- (None) > --- INVENTORY (5) ---- Particle Accelerator Gamma Rifle Peak State ------------ > --- POWER ------------ Micro Antimatter Reactor > --- PROPULSION ------- Gravmag Array Gravmag Array Cooled Cesium-ion Thruster Cooled Nuclear Pulse Thruster Cooled Nuclear Pulse Thruster Cooled Nuclear Pulse Thruster > --- UTILITY ---------- Structural Scanner Advanced Visual Processing Unit Advanced Signal Interpreter Advanced Reaction Control System Hacking Suite Hacking Suite Hacking Suite Hacking Suite Hacking Suite Hacking Suite Improved Hacking Suite Advanced Hacking Suite > --- WEAPON ----------- Micro-nuke Launcher Phasing Sabre > --- INVENTORY -------- Light Quantum Reactor Particle Accelerator Particle Accelerator Cooled Phase Cannon Datajack [Rating: 116] Favorites ----------- Power Backup Power VII Engine Light Deuterium Engine Power Core Backup Power VII Reactor Light Quantum Reactor Propulsion Cooled Nuclear Pulse Thruster Hover Unit Gravmag Array Flight Unit Cooled Nuclear Pulse Thruster Utility Hacking Suite Device Structural Scanner Processor Advanced Visual Processing Unit Hackware Hacking Suite Protection Backup Plating III Weapon Phasing Sabre Energy Gun Gamma Rifle Energy Cannon Cooled Phase Cannon Ballistic Gun Light Assault Rifle Launcher Micro-nuke Launcher Impact Weapon Great Maul Slashing Weapon Phasing Sabre Special Melee Weapon Datajack Build | -11 -10 -10 -9 -9 -9 -8 -8 -7 -6 -6 -6 -6 -6 -5 -5 -5 -5 -4 -4 -4 -4 -4 -3 -3 -2 -1 -1 ------- Run | Yrd Mat Min Mat Min Exi Min Mat Fac Fac Ext Cet Arc Hub Fac Upp Upp Zhi Pro Fac Upp Upp War Pro Res Res Acc Com Slots Evolved 18 | . . . 2 . . . 2 2 2 . . . . 2 . . . . 2 . . . . 2 2 2 . Power . | . . . . . . . . . . . . . . . . . . . . . . . . . . . . Propulsion 6 | . . . 1 . . . 1 . . . . . . . . . . . . . . . . 2 2 . . Utility 12 | . . . 1 . . . 1 2 2 . . . . 2 . . . . 2 . . . . . . 2 . Weapon . | . . . . . . . . . . . . . . . . . . . . . . . . . . . . Parts Attached 74 | 2 1 . 8 . . 4 4 19 3 3 . . 4 6 1 . 3 . 2 . . . . 3 2 1 8 Power 8 | . . . 1 . . . . 2 . 1 . . . . . . . . . . . . . 2 . 1 1 Engine 2 | . . . 1 . . . . 1 . . . . . . . . . . . . . . . . . . . Core 3 | . . . . . . . . 1 . 1 . . . . . . . . . . . . . 1 . . . Reactor 3 | . . . . . . . . . . . . . . . . . . . . . . . . 1 . 1 1 Propulsion 26 | . . . 6 . . 2 1 7 . . . . 2 3 . . 3 . . . . . . 1 1 . . Treads . | . . . . . . . . . . . . . . . . . . . . . . . . . . . . Leg . | . . . . . . . . . . . . . . . . . . . . . . . . . . . . Wheel . | . . . . . . . . . . . . . . . . . . . . . . . . . . . . Hover 2 | . . . . . . . . . . . . . . . . . . . . . . . . 1 1 . . Flight 24 | . . . 6 . . 2 1 7 . . . . 2 3 . . 3 . . . . . . . . . . Utility 24 | . . . . . . . 2 8 3 1 . . 1 3 . . . . 2 . . . . . 1 . 3 Device 6 | . . . . . . . . . . 1 . . 1 1 . . . . 1 . . . . . . . 2 Storage . | . . . . . . . . . . . . . . . . . . . . . . . . . . . . Processor 3 | . . . . . . . 1 . . . . . . 1 . . . . . . . . . . . . 1 Hackware 14 | . . . . . . . . 8 3 . . . . 1 . . . . 1 . . . . . 1 . . Protection 1 | . . . . . . . 1 . . . . . . . . . . . . . . . . . . . . Artifact . | . . . . . . . . . . . . . . . . . . . . . . . . . . . . Weapon 16 | 2 1 . 1 . . 2 1 2 . 1 . . 1 . 1 . . . . . . . . . . . 4 Energy Gun 2 | . . . . . . . . . . . . . . . . . . . . . . . . . . . 2 Energy Cannon 1 | . . . . . . . . . . . . . . . . . . . . . . . . . . . 1 Ballistic Gun 4 | 2 1 . 1 . . . . . . . . . . . . . . . . . . . . . . . . Ballistic Cannon . | . . . . . . . . . . . . . . . . . . . . . . . . . . . . Launcher 3 | . . . . . . 1 . 1 . . . . . . 1 . . . . . . . . . . . . Special Weapon . | . . . . . . . . . . . . . . . . . . . . . . . . . . . . Impact Weapon 1 | . . . . . . 1 . . . . . . . . . . . . . . . . . . . . . Slashing Weapon 4 | . . . . . . . 1 1 . 1 . . 1 . . . . . . . . . . . . . . Piercing Weapon . | . . . . . . . . . . . . . . . . . . . . . . . . . . . . Special Melee Weapon 1 | . . . . . . . . . . . . . . . . . . . . . . . . . . . 1 Unidentified Prototypes 4 | . . . . . . . . 1 . . . . 1 . . . 1 . . . . . 1 . . . . Parts Lost 44 | . . . 9 . . . 3 2 1 . 1 1 1 4 . . . . . . . . . . . 3 19 Power 3 | . . . 1 . . . . . . . . . . 1 . . . . . . . . . . . . 1 Propulsion 20 | . . . 5 . . . 2 2 . . 1 1 1 2 . . . . . . . . . . . 1 5 Utility 13 | . . . . . . . 1 . . . . . . 1 . . . . . . . . . . . 1 10 Weapon 8 | . . . 3 . . . . . 1 . . . . . . . . . . . . . . . . 1 3 Highest Loss Streak 11 | . . . 7 . . . 2 2 1 . 1 1 2 3 . . . . . . . . . . . 2 11 To Critical Strikes 1 | . . . 1 . . . . . . . . . . . . . . . . . . . . . . . . Average Backups 4 | . . 1 3 1 2 2 3 4 4 3 4 5 4 4 4 4 4 5 4 5 5 5 4 4 5 5 4 Power . | . . . . . . . . . 1 1 1 1 . . . . . . . . . . . . 1 1 . Propulsion . | . . . 1 . . . . . . . . . . . . 1 1 1 . . . . . . . . . Utility 1 | . . . . . . . . . 1 1 1 1 1 1 1 1 . 1 . 2 2 2 2 2 2 2 1 Weapon 1 | . . 1 1 1 2 2 2 3 2 1 2 3 2 2 1 1 1 1 1 1 1 1 1 1 1 1 1 Tool/Special . | . . . . . . . . . . . . . . . . . . . . . . . . . . . . Unused Backups 6 | . . . . . . . . 1 . . . . . 1 . . 1 . 2 . . . . . . . 1 Power . | . . . . . . . . . . . . . . . . . . . . . . . . . . . . Propulsion 1 | . . . . . . . . . . . . . . . . . . . 1 . . . . . . . . Utility 2 | . . . . . . . . . . . . . . 1 . . 1 . . . . . . . . . . Weapon 3 | . . . . . . . . 1 . . . . . . . . . . 1 . . . . . . . 1 Tool/Special . | . . . . . . . . . . . . . . . . . . . . . . . . . . . . Average Slot Usage (%) 79 | . 28 28 39 22 22 26 49 72 93 97 96 83 85 83 90 94 95 100 98 100 100 100 99 88 86 81 59 Core 3 | . . . . . . . . 3 . 5 6 4 5 4 5 5 5 5 5 5 5 5 5 4 4 4 2 Hover 1 | . . . . . . . . . . . . . . . . . . . . . . . . 1 6 8 5 Flight 18 | . . . 16 11 11 15 27 18 26 26 24 18 19 18 17 17 18 23 21 21 21 21 21 19 17 15 8 Device 6 | . . . . . . . . . . 5 6 6 6 5 11 11 11 11 13 15 15 15 14 10 8 8 6 Processor 7 | . . . . . . . 5 7 6 6 6 6 6 11 11 11 11 11 10 10 10 10 10 9 8 6 6 Hackware 30 | . . . . . . . . 29 43 40 40 40 40 35 35 35 35 35 36 36 36 36 36 33 31 32 25 Ballistic Gun 1 | . 28 28 19 11 11 5 . . . . . . . . . . . . . . . . . . . . . Launcher 2 | . . . . . . 1 . 4 3 4 4 . . . 1 5 5 5 5 5 5 5 5 4 4 2 . Slashing Weapon 4 | . . . . . . . 3 7 6 6 6 6 6 5 5 5 5 5 4 5 5 5 5 4 4 4 2 Peak Build Rating 116 | 2 2 2 6 2 2 6 15 38 44 49 49 45 51 68 75 75 79 79 93 93 93 93 92 100 115 116 108 Average Rating 59 | 1 2 2 3 2 2 3 10 27 41 47 47 42 47 57 70 75 76 79 91 93 93 93 91 94 108 110 78 On Entrance 51 | . 2 2 2 2 2 2 6 8 37 42 49 45 37 48 68 68 75 79 79 93 93 93 93 92 100 115 96 Avg Prop Armor Cover (%) 15 | . . . . . . . . . . 14 . . . 8 . . . . . . . . . 8 11 15 18 Naked Turns . | . . . . . . . . . . . . . . . . . . . . . . . . . . . . Heaviest Build 24 | 3 3 3 5 1 1 4 6 11 11 18 18 14 14 11 21 21 21 21 24 24 24 24 24 24 23 23 22 Greatest Support 27 | 3 3 3 12 4 4 12 12 18 18 18 18 14 19 25 25 25 25 24 24 24 24 24 24 24 24 27 20 Greatest Overweight (x) 7 | . . . . . . . . 1 . 5 1 1 1 . . . . . . . . . . . . 3 7 Average Overweight (x) . | . . . . . . . . . . . . . . . . . . . . . . . . . . . . Largest Inventory Capacity 5 | 5 5 5 5 5 5 5 5 5 5 5 5 5 5 5 5 5 5 5 5 5 5 5 5 5 5 5 5 Average Capacity 5 | 5 5 5 5 5 5 5 5 5 5 5 5 5 5 5 5 5 5 5 5 5 5 5 5 5 5 5 5 Most Carried 5 | . 1 2 5 2 2 4 4 5 5 5 5 5 5 5 5 4 5 5 5 5 5 5 5 5 5 5 5 Average Carried 4 | . . 1 3 1 2 2 3 4 4 3 4 5 4 4 4 4 4 5 4 5 5 5 4 4 4 5 4 Final Capacity 5 | 5 5 5 5 5 5 5 5 5 5 5 5 5 5 5 5 5 5 5 5 5 5 5 5 5 5 5 5 Final Carried 5 | . 1 2 1 2 2 3 3 5 5 4 5 5 5 4 5 4 5 5 5 5 5 5 4 5 5 5 2 Class Distribution -------------------- 52% | Wizard-Scout 17% | Wizard-Sprinter 11% | Mutant 7% | Hacker-Mutant 5% | Hacker-Sprinter 3% | Wizard-Mutant Dominant Class ---------------- Mutant | -10/Materials Mutant | -10/Mines Scavenger-Mutant | -9/Materials Mutant | -9/Mines Mutant | -9/Exiles Mutant | -8/Mines Mutant | -8/Materials Hacker-Sprinter | -7/Factory Wizard-Sprinter | -6/Factory Wizard-Sprinter | -6/Extension Wizard-Sprinter | -6/Cetus Wizard-Sprinter | -6/Archives Wizard-Sprinter | -6/Hub_04(d) Wizard-Scout | -5/Factory Wizard-Scout | -5/Upper Caves Wizard-Scout | -5/Upper Caves Wizard-Scout | -5/Zhirov Wizard-Scout | -4/Proximity Caves Wizard-Scout | -4/Factory Wizard-Scout | -4/Upper Caves Wizard-Scout | -4/Upper Caves Wizard-Scout | -4/Warlord Wizard-Scout | -3/Proximity Caves Wizard-Scout | -3/Research Wizard-Scout | -2/Research Wizard-Scout | -1/Access Wizard-Scout | -1/Command Resources | -11 -10 -10 -9 -9 -9 -8 -8 -7 -6 -6 -6 -6 -6 -5 -5 -5 -5 -4 -4 -4 -4 -4 -3 -3 -2 -1 -1 ----------- Run | Yrd Mat Min Mat Min Exi Min Mat Fac Fac Ext Cet Arc Hub Fac Upp Upp Zhi Pro Fac Upp Upp War Pro Res Res Acc Com Matter Collected 1757 | 134 34 61 88 25 . 17 16 119 32 285 . . 20 73 101 152 . 101 125 . . . 4 126 30 40 174 Remotely . | . . . . . . . . . . . . . . . . . . . . . . . . . . . . Salvage Created 2151 | . 44 . 56 . . 79 35 164 32 221 . 35 48 179 33 72 . 56 344 99 . . 71 183 41 185 174 Parts 181 | . 2 . 12 . . 6 . 23 4 14 . 4 7 18 8 2 . . 36 3 . . 8 7 1 14 12 Haulers Intercepted . | . . . . . . . . . . . . . . . . . . . . . . . . . . . . Recyclers Shooed 2 | . . . . . . 1 . . . . . . . . . . . . 1 . . . . . . . . Parts Field Recycled . | . . . . . . . . . . . . . . . . . . . . . . . . . . . . Retrieved Matter . | . . . . . . . . . . . . . . . . . . . . . . . . . . . . Parts Self-Destructed 7 | . . . . . . . . . . . . . . . 5 1 . . . . . . 1 . . . . Prevented 3 | . . . . . . . . . . . . . . . 2 1 . . . . . . . . . . . Parts Restored . | . . . . . . . . . . . . . . . . . . . . . . . . . . . . Kills | -11 -10 -10 -9 -9 -9 -8 -8 -7 -6 -6 -6 -6 -6 -5 -5 -5 -5 -4 -4 -4 -4 -4 -3 -3 -2 -1 -1 ------- Run | Yrd Mat Min Mat Min Exi Min Mat Fac Fac Ext Cet Arc Hub Fac Upp Upp Zhi Pro Fac Upp Upp War Pro Res Res Acc Com Combat Hostiles Destroyed 38 | . 3 . 4 . . 3 . 4 . . . . . . 6 4 . 3 . . . . 4 . . 5 2 Guns 7 | . 3 . 4 . . . . . . . . . . . . . . . . . . . . . . . . Cannons 2 | . . . . . . . . . . . . . . . . . . . . . . . . . . . 2 AOE 29 | . . . . . . 3 . 4 . . . . . . 6 4 . 3 . . . . 4 . . 5 . Classes Destroyed 10 | . 1 . . . . 2 . 3 . 1 . . . 1 . 1 . . . . . . . . . . 1 Worker 11 | . . . . . . . . 1 . . . . . 1 . . . . 3 . . . . 1 2 . 3 Builder 13 | . . . . . . 1 2 1 1 1 . . 2 1 . . . . 3 . . . . . . 1 . Tunneler 5 | . . . . . . 1 . . . . . . . 1 . . . . 2 . . . . . . 1 . Recycler 3 | . . . . . . . . . . 1 . . . . . . . . 1 . . . . 1 . . . Mechanic 1 | . . . . . . . . . . . . . . 1 . . . . . . . . . . . . . Operator 7 | . . . . . . . . 1 2 1 . . . 2 . . . . 1 . . . . . . . . Watcher 7 | . . . . . . . . 1 . 1 . . . 1 . . . . 2 . . . . 1 . 1 . Swarmer 32 | . 3 . 4 . . 3 . 4 . . . . . . 6 3 . . . . . . 4 . . 5 . Grunt 4 | . . . . . . . . . . . . . . . . 1 . 3 . . . . . . . . . Programmer 2 | . . . . . . . . . . . . . . . . . . . . . . . . . . . 2 Decomposer 5 | . . . . . . . . . . . . . . . . . . . . 5 . . . . . . . Best Kill Streak 6 | . 3 . 4 . . 5 2 4 2 1 . . 1 2 6 4 . 3 3 . . . 4 2 2 5 2 Combat Bots Only 6 | . 3 . 4 . . 3 . 4 . . . . . . 6 4 . 3 . . . . 4 . . 5 2 Max Kills in Single Turn 4 | . 1 . 1 . . 2 1 2 1 1 . . 1 1 3 3 . 1 1 1 . . 3 1 1 4 1 Gunslinging . | . . . . . . . . . . . . . . . . . . . . . . . . . . . . Exploded 4 | . . . . . . 2 . 2 . . . . . . 3 3 . 1 . . . . 3 . . 4 . Melee . | . . . . . . . . . . . . . . . . . . . . . . . . . . . . Uniques/NPCs Destroyed . | . . . . . . . . . . . . . . . . . . . . . . . . . . . . Combat | -11 -10 -10 -9 -9 -9 -8 -8 -7 -6 -6 -6 -6 -6 -5 -5 -5 -5 -4 -4 -4 -4 -4 -3 -3 -2 -1 -1 -------- Run | Yrd Mat Min Mat Min Exi Min Mat Fac Fac Ext Cet Arc Hub Fac Upp Upp Zhi Pro Fac Upp Upp War Pro Res Res Acc Com Hostile Shots Fired 380 | . 51 . 83 . . 6 14 33 21 11 . 5 14 2 5 5 . 2 2 6 . . 2 . . 10 108 Missed 174 | . 13 . 41 . . 2 4 25 11 4 . 4 8 1 1 4 . 2 2 4 . . 2 . . 6 40 Hits 206 | . 38 . 42 . . 4 10 8 10 7 . 1 6 1 4 1 . . . 2 . . . . . 4 68 Melee 1 | . . . . . . . . 1 . . . . . . . . . . . . . . . . . . . Projectile 205 | . 38 . 42 . . 4 10 7 10 7 . 1 6 1 4 1 . . . 2 . . . . . 4 68 AOE 8 | . . . . . . . 2 1 . . . . . . . . . . . . . . . . . . 5 Critical Strikes 10 | . . . 1 . . . . . . . 1 . 1 . . . . . . . . . . . . . 7 Part Disruptions 1 | . . . . . . . . . . . . . . . . . . . . . . . . . . . 1 Damage Taken 5785 | . 336 7 549 . . 83 208 305 118 60 14 18 131 250 60 86 . . 37 71 . . 3 . . 504 2945 Core 2643 | . 200 7 185 . . 75 35 206 22 13 . . 52 143 47 13 . . 37 . . . 1 . . 78 1529 Absorbed by Shields 86 | . . . . . . . . 39 . 33 14 . . . . . . . . . . . . . . . . Regen/Repaired (Parts) 72 | . . . . . . . . . . . . . . 33 . . . . 39 . . . . . . . . Core Remaining (%) 77 | 100 . 17 . . . 35 93 70 . . . . 89 . . . . 79 . . . . 89 100 100 . . Volleys Fired 85 | . 12 . 8 . . 3 . 2 3 6 . . . . 8 3 . 7 . . . . 4 1 . 6 22 Largest 2 | . 2 . 2 . . 1 . 1 1 1 . . . . 1 1 . 1 . . . . 1 1 . 1 2 Hottest 150 | . 40 . 40 . . 33 . 30 30 33 . . . . 49 49 . 49 . . . . 49 49 . 49 150 Shots Fired 102 | . 24 . 13 . . 3 . 2 3 6 . . . . 8 3 . 7 . . . . 4 1 . 6 22 Gun 39 | . 24 . 13 . . . . . . . . . . . . . . . . . . . . . . . 2 Cannon 20 | . . . . . . . . . . . . . . . . . . . . . . . . . . . 20 Launcher 43 | . . . . . . 3 . 2 3 6 . . . . 8 3 . 7 . . . . 4 1 . 6 . Special . | . . . . . . . . . . . . . . . . . . . . . . . . . . . . Kinetic 37 | . 24 . 13 . . . . . . . . . . . . . . . . . . . . . . . . Thermal 20 | . . . . . . . . . . . . . . . . . . . . . . . . . . . 20 Explosive 43 | . . . . . . 3 . 2 3 6 . . . . 8 3 . 7 . . . . 4 1 . 6 . Electromagnetic 2 | . . . . . . . . . . . . . . . . . . . . . . . . . . . 2 Robot Hit Streak 8 | . 2 . 3 . . . . . 1 . . . . . 2 3 . 1 . . . . . . . 3 8 Robot Miss Streak 3 | . 3 . 3 . . . . 1 . . . . . . . 1 . 1 . . . . . . . . 3 Penetration Max . | . . . . . . . . . . . . . . . . . . . . . . . . . . . . Secondary Targets 2 | . 2 . . . . . . . . . . . . . . . . . . . . . . . . . . Max Gunslinging Chain 1 | . 1 . . . . . . . . . . . . . . . . . . . . . . . . . . Shots Hit Robots 111 | . 12 . 5 . . 4 2 6 3 8 . 1 3 7 1 2 . 1 15 5 2 . . 3 2 9 20 Core Hits 100 | . 3 . 4 . . 5 . 10 3 4 . 1 2 5 11 4 . 10 8 4 . . 7 1 1 9 8 Critical Kills 1 | . 1 . . . . . . . . . . . . . . . . . . . . . . . . . . Critical Parts Destroyed . | . . . . . . . . . . . . . . . . . . . . . . . . . . . . Critical Strikes 4 | . 1 . . . . . . . . 1 . . . . . . . . . . . . . . . 2 . Destroy 1 | . 1 . . . . . . . . . . . . . . . . . . . . . . . . . . Sever 3 | . . . . . . . . . . 1 . . . . . . . . . . . . . . . 2 . Melee Attacks 400 | . . . . . . 5 34 44 14 17 . 1 14 43 8 3 . 9 72 7 11 . 6 12 14 45 41 Impact 23 | . . . . . . 5 18 . . . . . . . . . . . . . . . . . . . . Slashing 376 | . . . . . . . 16 44 14 17 . 1 14 43 8 3 . 9 72 7 11 . 6 12 14 45 40 Piercing . | . . . . . . . . . . . . . . . . . . . . . . . . . . . . Sneak Attacks 48 | . . . . . . 2 2 5 2 2 . . 3 6 . . . . 10 5 1 . . 2 2 2 4 Combat Hostiles 1 | . . . . . . . . . . . . . . . . . . . . . . . . . . . 1 Follow-up Attacks . | . . . . . . . . . . . . . . . . . . . . . . . . . . . . Damage Inflicted 9378 | . 120 4 51 . . 394 182 582 240 450 . 121 235 583 623 505 . 675 1367 514 133 . 318 219 189 885 988 Guns 171 | . 120 . 51 . . . . . . . . . . . . . . . . . . . . . . . . Cannons 502 | . . . . . . . . . . . . . . . . . . . . . . . . . . . 502 Explosions 2983 | . . . . . . 95 . 153 80 1 . . . . 623 505 . 675 . . . . 318 . . 457 76 Melee 5718 | . . . . . . 299 182 429 160 449 . 121 235 583 . . . . 1367 514 133 . . 219 189 428 410 Ramming 4 | . . 4 . . . . . . . . . . . . . . . . . . . . . . . . . Kinetic 171 | . 120 . 51 . . . . . . . . . . . . . . . . . . . . . . . . Thermal 502 | . . . . . . . . . . . . . . . . . . . . . . . . . . . 502 Explosive 2983 | . . . . . . 95 . 153 80 1 . . . . 623 505 . 675 . . . . 318 . . 457 76 Electromagnetic . | . . . . . . . . . . . . . . . . . . . . . . . . . . . . Impact 481 | . . . . . . 299 182 . . . . . . . . . . . . . . . . . . . . Slashing 5237 | . . . . . . . . 429 160 449 . 121 235 583 . . . . 1367 514 133 . . 219 189 428 410 Piercing . | . . . . . . . . . . . . . . . . . . . . . . . . . . . . Highest Corruption 41 | . . . 1 1 1 1 . . . . . . . . . . . . . . . . . . . 9 41 Average Corruption 11 | . . . 1 1 1 1 . . . . . . . . . . . . . . . . . . . 9 17 Corruption Purged . | . . . . . . . . . . . . . . . . . . . . . . . . . . . . Corruption Blocked . | . . . . . . . . . . . . . . . . . . . . . . . . . . . . Effects 46 | . . . . 1 . 1 . . . . . . . . . . . . . . . . . . . 5 39 Message Errors 13 | . . . . . . . . . . . . . . . . . . . . . . . . . . . 13 Matter Fused 11 | . . . . 1 . . . . . . . . . . . . . . . . . . . . . 2 8 Heat Flow Errors 2 | . . . . . . 1 . . . . . . . . . . . . . . . . . . . . 1 Energy Discharges 7 | . . . . . . . . . . . . . . . . . . . . . . . . . . 1 6 Data Loss (minor) 5 | . . . . . . . . . . . . . . . . . . . . . . . . . . 1 4 Data Loss (major) 2 | . . . . . . . . . . . . . . . . . . . . . . . . . . 1 1 Misdirections 6 | . . . . . . . . . . . . . . . . . . . . . . . . . . . 6 Overload Shots 3 | . . . . . . . . . . . . . . . . . . . . . . . . . . . 3 Effects 2 | . . . . . . . . . . . . . . . . . . . . . . . . . . . 2 Energy Bleed 1 | . . . . . . . . . . . . . . . . . . . . . . . . . . . 1 Heat Surge 1 | . . . . . . . . . . . . . . . . . . . . . . . . . . . 1 Overflow Damage 1496 | . . . . . . 142 122 79 52 21 . . 23 91 37 1 . . 364 115 26 . . 101 84 121 117 Projectiles 32 | . . . . . . . . . . . . . . . . . . . . . . . . . . . 32 Explosions 98 | . . . . . . . . . 2 . . . . . 37 1 . . . . . . . . . 42 16 Melee 1366 | . . . . . . 142 122 79 50 21 . . 23 91 . . . . 364 115 26 . . 101 84 79 69 Knockbacks 5 | . . . . . . 3 2 . . . . . . . . . . . . . . . . . . . . Impact 5 | . . . . . . 3 2 . . . . . . . . . . . . . . . . . . . . Kinetic . | . . . . . . . . . . . . . . . . . . . . . . . . . . . . Secondary . | . . . . . . . . . . . . . . . . . . . . . . . . . . . . Self-Inflicted Damage 115 | . . 2 . . . 36 . . . . . . . . . 73 . . . . . . 4 . . . . Shots 3 | . . . . . . 1 . . . . . . . . . 1 . . . . . . 1 . . . . Rammed 1 | . . 1 . . . . . . . . . . . . . . . . . . . . . . . . . Targets Rammed 1 | . . 1 . . . . . . . . . . . . . . . . . . . . . . . . . Kicked . | . . . . . . . . . . . . . . . . . . . . . . . . . . . . Crushed . | . . . . . . . . . . . . . . . . . . . . . . . . . . . . Highest Temperature 399 | . . . 7 . . 211 . 399 2 . . . 7 1 . . . . . . . . . . . . 146 Average Temperature 128 | . . . 4 . . 113 . 212 2 . . . 7 1 . . . . . . . . . . . . 87 Received Heat Transfer 576 | . 48 . 135 . . . 36 57 30 21 . 9 51 . . . . . . . . . . . . 9 180 Siege Activations . | . . . . . . . . . . . . . . . . . . . . . . . . . . . . Martial Activations . | . . . . . . . . . . . . . . . . . . . . . . . . . . . . Shielding Activations . | . . . . . . . . . . . . . . . . . . . . . . . . . . . . Robots Disrupted . | . . . . . . . . . . . . . . . . . . . . . . . . . . . . Combat Hostiles . | . . . . . . . . . . . . . . . . . . . . . . . . . . . . Robots Corrupted 4 | . . . . . . 2 2 . . . . . . . . . . . . . . . . . . . . Combat Hostiles . | . . . . . . . . . . . . . . . . . . . . . . . . . . . . Parts Fried 4 | . . . . . . 2 2 . . . . . . . . . . . . . . . . . . . . Impact Corruptions 11 | . . . . . . 6 5 . . . . . . . . . . . . . . . . . . . . Robots Melted . | . . . . . . . . . . . . . . . . . . . . . . . . . . . . Combat Hostiles . | . . . . . . . . . . . . . . . . . . . . . . . . . . . . Parts Melted 2 | . . . . . . . . . . . . . . . . . . . . . . . . . . . 2 Heat Transferred 332 | . . . . . . . . . . . . . . . . . . . . . . . . . . . 332 Parts Sabotaged . | . . . . . . . . . . . . . . . . . . . . . . . . . . . . Parts Stolen . | . . . . . . . . . . . . . . . . . . . . . . . . . . . . Parts Stripped . | . . . . . . . . . . . . . . . . . . . . . . . . . . . . Power Chain Reactions . | . . . . . . . . . . . . . . . . . . . . . . . . . . . . Alert | -11 -10 -10 -9 -9 -9 -8 -8 -7 -6 -6 -6 -6 -6 -5 -5 -5 -5 -4 -4 -4 -4 -4 -3 -3 -2 -1 -1 ------- Run | Yrd Mat Min Mat Min Exi Min Mat Fac Fac Ext Cet Arc Hub Fac Upp Upp Zhi Pro Fac Upp Upp War Pro Res Res Acc Com Maximum Alert Level 1 | . . . . . . . . . . 1 1 . . . . . . . . . . . . . . 1 1 Low Security (%) 90 | 100 100 100 100 100 . 100 100 100 100 69 73 100 100 100 . . . . 100 . . . . 100 100 93 60 Level 1 9 | . . . . . . . . . . 30 26 . . . . . . . . . . . . . . 6 39 Level 2 . | . . . . . . . . . . . . . . . . . . . . . . . . . . . . Level 3 . | . . . . . . . . . . . . . . . . . . . . . . . . . . . . Level 4 . | . . . . . . . . . . . . . . . . . . . . . . . . . . . . Level 5 . | . . . . . . . . . . . . . . . . . . . . . . . . . . . . High Security . | . . . . . . . . . . . . . . . . . . . . . . . . . . . . Max Security . | . . . . . . . . . . . . . . . . . . . . . . . . . . . . Peak Influence 290 | . 105 25 140 42 . 96 167 97 157 275 258 48 16 37 . . . . 58 . . . . 91 49 287 290 Initial 123 | . . 25 1 42 . . 33 62 24 71 123 38 9 1 . . . . 12 . . . . 60 22 . 114 Average 72 | . 60 19 49 15 . 25 59 39 70 168 158 37 3 5 . . . . 8 . . . . 64 24 90 176 Influence Increases 4601 | . 115 . 285 . . 116 274 353 305 650 347 10 36 227 205 105 . 70 261 . . . 90 71 60 535 486 Destroy 0b10 Robot/C 1220 | . 60 . 80 . . 60 . 80 . 300 160 . . . 120 80 . 60 . . . . 80 . . 100 40 Destroy 0b10 Robot/NC 235 | . . . . . . 10 10 20 10 20 10 5 10 25 . . . . 60 . . . . 15 10 15 15 Destroy Leader 144 | . 10 . 10 . . 10 . 12 . 32 . . . 2 10 10 . 10 4 . . . 10 2 . 12 10 Allied During Kill 369 | . . . . . . . . . . 194 170 5 . . . . . . . . . . . . . . . Successful Hack 118 | . . . . . . . 8 7 14 1 . . 3 25 . . . . 18 . . . . . 8 15 19 Disable Machine 150 | . 15 . . . . . 15 45 15 15 . . . 15 . . . . . . . . . . 15 . 15 Anti-Garrison Action 50 | . . . . . . . . . . . . . . . . . . . . . . . . . . . 50 Destroy Structure 815 | . . . . . . 21 16 39 26 28 7 . 8 70 . . . . 104 . . . . 54 27 198 217 Partial Spotted 240 | . . . 30 . . . 30 30 15 15 . . . 60 . . . . 30 . . . . . . 15 15 Lose Combat Pursuer 1260 | . 30 . 165 . . 15 195 120 225 45 . . 15 30 75 15 . . 45 . . . . . . 180 105 Influence Decreases 4547 | . 50 60 180 110 . 30 223 439 209 576 473 77 61 217 73 78 172 50 223 52 6 . . 120 101 356 611 Entered New Map 870 | . . 40 4 68 . . 53 75 27 76 98 57 19 2 5 28 172 . 8 22 2 . . 30 19 . 65 Time Decay 2887 | . 50 20 86 42 . 30 140 344 172 380 206 10 33 203 68 50 . 50 215 30 4 . . 90 82 226 356 Search Patrol Dispatched 100 | . . . . . . . . . . . . . . . . . . . . . . . . . . 100 . Lost Part 411 | . . . 90 . . . 30 20 10 . 10 10 9 12 . . . . . . . . . . . 30 190 Lost Ally 279 | . . . . . . . . . . 120 159 . . . . . . . . . . . . . . . . Squads Dispatched 50 | . . . 5 . . . 4 11 2 1 . . 3 5 . . . . 8 . . . . 1 2 3 5 Investigation 21 | . . . 2 . . . 3 7 1 . . . . 2 . . . . 5 . . . . . 1 . . Extermination 11 | . . . . . . . . 2 . . . . . 2 . . . . 2 . . . . 1 . 2 2 Reinforcement 17 | . . . 3 . . . 1 1 1 1 . . 3 1 . . . . 1 . . . . . 1 1 3 Assault . | . . . . . . . . . . . . . . . . . . . . . . . . . . . . Garrison 1 | . . . . . . . . 1 . . . . . . . . . . . . . . . . . . . Intercept . | . . . . . . . . . . . . . . . . . . . . . . . . . . . . Searches Triggered 1 | . . . . . . . . . . . . . . . . . . . . . . . . . . 1 . Construction Impeded 1 | . . . . . . . . . . . . . 1 . . . . . . . . . . . . . . Haulers Reinforced . | . . . . . . . . . . . . . . . . . . . . . . . . . . . . Active Scanning Responses . | . . . . . . . . . . . . . . . . . . . . . . . . . . . . Cargo Convoy Interrupts . | . . . . . . . . . . . . . . . . . . . . . . . . . . . . Stealth | -11 -10 -10 -9 -9 -9 -8 -8 -7 -6 -6 -6 -6 -6 -5 -5 -5 -5 -4 -4 -4 -4 -4 -3 -3 -2 -1 -1 --------- Run | Yrd Mat Min Mat Min Exi Min Mat Fac Fac Ext Cet Arc Hub Fac Upp Upp Zhi Pro Fac Upp Upp War Pro Res Res Acc Com Distress Signals 15 | . . . 2 . . . 4 2 . 1 3 . . . . . . . 1 . . . . . 1 1 . Communications Jammed . | . . . . . . . . . . . . . . . . . . . . . . . . . . . . Distress Signals . | . . . . . . . . . . . . . . . . . . . . . . . . . . . . Times Spotted 239 | . 9 . 32 . . 3 26 26 24 14 3 10 5 8 10 4 . 3 18 1 . . 1 4 3 13 22 Peak Tracking Total 15 | . 5 . 14 . . 3 15 6 11 3 3 10 4 2 5 4 . 3 4 1 . . 1 2 3 15 7 Tactical Retreats 36 | . 1 . 3 . . 1 6 6 4 2 . . 1 2 1 1 . . 3 . . . . . . 2 3 Traps | -11 -10 -10 -9 -9 -9 -8 -8 -7 -6 -6 -6 -6 -6 -5 -5 -5 -5 -4 -4 -4 -4 -4 -3 -3 -2 -1 -1 ------- Run | Yrd Mat Min Mat Min Exi Min Mat Fac Fac Ext Cet Arc Hub Fac Upp Upp Zhi Pro Fac Upp Upp War Pro Res Res Acc Com Traps Triggered 15 | . 1 . 1 . . . 1 4 . 5 . . . 1 . . . . 2 . . . . . . . . Indirectly . | . . . . . . . . . . . . . . . . . . . . . . . . . . . . Trap Hack Attempts . | . . . . . . . . . . . . . . . . . . . . . . . . . . . . Triggered . | . . . . . . . . . . . . . . . . . . . . . . . . . . . . Disarmed . | . . . . . . . . . . . . . . . . . . . . . . . . . . . . Reprogrammed . | . . . . . . . . . . . . . . . . . . . . . . . . . . . . Reused . | . . . . . . . . . . . . . . . . . . . . . . . . . . . . Traps Extracted . | . . . . . . . . . . . . . . . . . . . . . . . . . . . . Installed . | . . . . . . . . . . . . . . . . . . . . . . . . . . . . Triggered . | . . . . . . . . . . . . . . . . . . . . . . . . . . . . Machines | -11 -10 -10 -9 -9 -9 -8 -8 -7 -6 -6 -6 -6 -6 -5 -5 -5 -5 -4 -4 -4 -4 -4 -3 -3 -2 -1 -1 ---------- Run | Yrd Mat Min Mat Min Exi Min Mat Fac Fac Ext Cet Arc Hub Fac Upp Upp Zhi Pro Fac Upp Upp War Pro Res Res Acc Com Machines Disabled 12 | . 1 . . . . . 1 3 1 1 . . . 1 . . . . . . . . . . 1 . 3 Max in Single Turn 2 | . 1 . . . . . 1 1 1 1 . . . 1 . . . . . . . . . . 1 . 2 Garrison Access 4 | . . . . . . . . . . . . . . 1 . . . . 2 . . . . . . 1 . Phase Generator 1 | . . . . . . . . . . . . . . . . . . . . . . . . . . . 1 Machines Repaired . | . . . . . . . . . . . . . . . . . . . . . . . . . . . . Machines Dismantled . | . . . . . . . . . . . . . . . . . . . . . . . . . . . . Machines Sabotaged . | . . . . . . . . . . . . . . . . . . . . . . . . . . . . Overloaded Fab Kills . | . . . . . . . . . . . . . . . . . . . . . . . . . . . . Hacking | -11 -10 -10 -9 -9 -9 -8 -8 -7 -6 -6 -6 -6 -6 -5 -5 -5 -5 -4 -4 -4 -4 -4 -3 -3 -2 -1 -1 --------- Run | Yrd Mat Min Mat Min Exi Min Mat Fac Fac Ext Cet Arc Hub Fac Upp Upp Zhi Pro Fac Upp Upp War Pro Res Res Acc Com Machines Accessed 74 | . 1 . 3 . 1 . 3 10 5 7 1 . 1 10 1 . 5 . 12 . 1 1 . 2 2 5 3 Terminals 42 | . 1 . 3 . . . 3 4 3 7 1 . 1 5 . . . . 5 . . . . 2 1 4 2 Fabricators 14 | . . . . . . . . 6 2 . . . . 2 . . . . 3 . . . . . 1 . . Repair Stations 5 | . . . . . . . . . . . . . . 2 . . . . 2 . . . . . . . 1 Recycling Units . | . . . . . . . . . . . . . . . . . . . . . . . . . . . . Scanalyzers . | . . . . . . . . . . . . . . . . . . . . . . . . . . . . Garrison Access 4 | . . . . . . . . . . . . . . 1 . . . . 2 . . . . . . 1 . Total Hacks 171 | . 3 . 9 . 1 . 7 35 16 7 2 . 1 19 1 . 18 . 33 . 1 1 . 3 4 6 4 Successful 120 | . 1 . . . 1 . 1 21 12 7 1 . 1 18 1 . 18 . 24 . 1 1 . 1 3 5 3 Failed 51 | . 2 . 9 . . . 6 14 4 . 1 . . 1 . . . . 9 . . . . 2 1 1 1 Catastrophic 13 | . 1 . 4 . . . 4 3 . . . . . . . . . . . . . . . 1 . . . Database Lockouts . | . . . . . . . . . . . . . . . . . . . . . . . . . . . . Manual 89 | . 3 . 11 . 1 . 7 19 11 . 1 . 1 10 . . . . 19 . . . . 1 2 2 1 Terminals 90 | . 3 . 9 . . . 7 13 9 7 2 . 1 9 . . . . 18 . . . . 3 1 5 3 Fabricators 47 | . . . . . . . . 22 7 . . . . 6 . . . . 9 . . . . . 3 . . Repair Stations 8 | . . . . . . . . . . . . . . 3 . . . . 4 . . . . . . . 1 Recycling Units . | . . . . . . . . . . . . . . . . . . . . . . . . . . . . Scanalyzers . | . . . . . . . . . . . . . . . . . . . . . . . . . . . . Garrison Access 4 | . . . . . . . . . . . . . . 1 . . . . 2 . . . . . . 1 . Terminal Hacks 61 | . 1 . . . 1 . 1 2 5 7 1 . 1 5 1 . 18 . 8 . 1 1 . 1 1 4 2 Record 6 | . . . . . . . . . . . . . . . . . 6 . . . . . . . . . . Part Schematic 11 | . . . . . . . 1 1 2 . . . . 1 . . 4 . 2 . . . . . . . . Robot Analysis 4 | . . . . . . . . . . . . . . . . . 4 . . . . . . . . . . Prototype ID Bank 4 | . . . . . . . . . . . . . . . . . 4 . . . . . . . . . . Open Door 14 | . . . . . . . . . . 7 1 . . . 1 . . . . . 1 1 . . . 3 . Level Access Points 3 | . . . . . . . . . . . . . 1 . . . . . . . . . . 1 1 . . Branch Access Points 5 | . 1 . . . . . . . 1 . . . . 1 . . . . 1 . . . . . . 1 . Machine Index 4 | . . . . . . . . . 1 . . . . 1 . . . . 1 . . . . . . . 1 Fabricator Index 1 | . . . . . . . . 1 . . . . . . . . . . . . . . . . . . . Recall Investigation 4 | . . . . . . . . . 1 . . . . 1 . . . . 2 . . . . . . . . Recall Extermination 3 | . . . . . . . . . . . . . . 1 . . . . 2 . . . . . . . . Proto ID Catalog 1 | . . . . . 1 . . . . . . . . . . . . . . . . . . . . . . Disengage Seal 1 | . . . . . . . . . . . . . . . . . . . . . . . . . . . 1 Fabricator Hacks 31 | . . . . . . . . 13 4 . . . . 5 . . . . 7 . . . . . 2 . . Network Status 1 | . . . . . . . . . . . . . . . . . . . 1 . . . . . . . . Load Schematic 17 | . . . . . . . . 9 2 . . . . 2 . . . . 3 . . . . . 1 . . Build 13 | . . . . . . . . 4 2 . . . . 3 . . . . 3 . . . . . 1 . . Repair Station Hacks 8 | . . . . . . . . . . . . . . 3 . . . . 4 . . . . . . . 1 Scan Component 3 | . . . . . . . . . . . . . . 1 . . . . 2 . . . . . . . . Repair 3 | . . . . . . . . . . . . . . 1 . . . . 2 . . . . . . . . Refit 2 | . . . . . . . . . . . . . . 1 . . . . . . . . . . . . 1 Recycling Unit Hacks . | . . . . . . . . . . . . . . . . . . . . . . . . . . . . Scanalyzer . | . . . . . . . . . . . . . . . . . . . . . . . . . . . . Garrison Access Hacks 4 | . . . . . . . . . . . . . . 1 . . . . 2 . . . . . . 1 . Seal Access 4 | . . . . . . . . . . . . . . 1 . . . . 2 . . . . . . 1 . Unauthorized Hacks 16 | . . . . . . . . 6 3 . . . . 4 . . . . 3 . . . . . . . . Terminals 7 | . . . . . . . . 1 1 . . . . 3 . . . . 2 . . . . . . . . Assimilate 4 | . . . . . . . . 1 1 . . . . 2 . . . . . . . . . . . . . Botnet 3 | . . . . . . . . . . . . . . 1 . . . . 2 . . . . . . . . Fabricators 9 | . . . . . . . . 5 2 . . . . 1 . . . . 1 . . . . . . . . Prioritize 5 | . . . . . . . . 1 2 . . . . 1 . . . . 1 . . . . . . . . Recompile 4 | . . . . . . . . 4 . . . . . . . . . . . . . . . . . . . Repair Stations . | . . . . . . . . . . . . . . . . . . . . . . . . . . . . Recycling Units . | . . . . . . . . . . . . . . . . . . . . . . . . . . . . Scanalyzers . | . . . . . . . . . . . . . . . . . . . . . . . . . . . . Garrison Access . | . . . . . . . . . . . . . . . . . . . . . . . . . . . . Data Cores Recovered 3 | . . . . . . . . 1 1 . . . . . . . . . 1 . . . . . . . . Used 1 | . . . . . . . . . 1 . . . . . . . . . . . . . . . . . . Hacking Detections 37 | . 1 . 3 . . . 3 5 3 1 . . . 6 . . . . 9 . . . . 2 1 1 2 Full Trace Events 18 | . 1 . 3 . . . 2 3 1 . . . . 2 . . . . 5 . . . . . 1 . . Feedback Events 1 | . . . 1 . . . . . . . . . . . . . . . . . . . . . . . . Corruption 1 | . . . 1 . . . . . . . . . . . . . . . . . . . . . . . . Feedback Blocked . | . . . . . . . . . . . . . . . . . . . . . . . . . . . . Robot Schematics Acquired . | . . . . . . . . . . . . . . . . . . . . . . . . . . . . Robots Built . | . . . . . . . . . . . . . . . . . . . . . . . . . . . . Authchips . | . . . . . . . . . . . . . . . . . . . . . . . . . . . . Time . | . . . . . . . . . . . . . . . . . . . . . . . . . . . . Total Robot Build Rating . | . . . . . . . . . . . . . . . . . . . . . . . . . . . . Part Schematics Acquired 11 | . . . . . . . 1 1 2 . . . . 1 . . 4 . 2 . . . . . . . . Parts Built 14 | . . . . . . . . 4 3 . . . . 3 . . . . 3 . . . . . 1 . . Authchips 4 | . . . . . . . . 3 1 . . . . . . . . . . . . . . . . . . Time 605 | . . . . . . . . 144 83 . . . . 153 . . . . 201 . . . . . 24 . . Total Part Build Rating 60 | . . . . . . . . 12 13 . . . . 11 . . . . 21 . . . . . 3 . . Part Studies Acquired . | . . . . . . . . . . . . . . . . . . . . . . . . . . . . Parts Repaired 3 | . . . . . . . . . . . . . . 1 . . . . 2 . . . . . . . . Time 92 | . . . . . . . . . . . . . . 26 . . . . 66 . . . . . . . . Parts Recycled . | . . . . . . . . . . . . . . . . . . . . . . . . . . . . Recycled Matter . | . . . . . . . . . . . . . . . . . . . . . . . . . . . . Retrieved Matter . | . . . . . . . . . . . . . . . . . . . . . . . . . . . . Retrieved Components . | . . . . . . . . . . . . . . . . . . . . . . . . . . . . Parts Scanalyzed . | . . . . . . . . . . . . . . . . . . . . . . . . . . . . Part Schematics Acquired . | . . . . . . . . . . . . . . . . . . . . . . . . . . . . Parts Damaged . | . . . . . . . . . . . . . . . . . . . . . . . . . . . . Bothacking | -11 -10 -10 -9 -9 -9 -8 -8 -7 -6 -6 -6 -6 -6 -5 -5 -5 -5 -4 -4 -4 -4 -4 -3 -3 -2 -1 -1 ------------ Run | Yrd Mat Min Mat Min Exi Min Mat Fac Fac Ext Cet Arc Hub Fac Upp Upp Zhi Pro Fac Upp Upp War Pro Res Res Acc Com Used RIF Installer . | . . . . . . . . . . . . . . . . . . . . . . . . . . . . Robots Hacked 1 | . . . . . . . . . . . . . . . . . . . . . . . . . . . 1 Non-combat . | . . . . . . . . . . . . . . . . . . . . . . . . . . . . Combat . | . . . . . . . . . . . . . . . . . . . . . . . . . . . . Robot Hacks Applied . | . . . . . . . . . . . . . . . . . . . . . . . . . . . . Manual 1 | . . . . . . . . . . . . . . . . . . . . . . . . . . . 1 Relay Couplers Released . | . . . . . . . . . . . . . . . . . . . . . . . . . . . . Fabnet Peak Effective % . | . . . . . . . . . . . . . . . . . . . . . . . . . . . . Robots Rewired 10 | . . . . . . . . . . 10 . . . . . . . . . . . . . . . . . Allies Hacked . | . . . . . . . . . . . . . . . . . . . . . . . . . . . . Hacks Repelled . | . . . . . . . . . . . . . . . . . . . . . . . . . . . . Allies | -11 -10 -10 -9 -9 -9 -8 -8 -7 -6 -6 -6 -6 -6 -5 -5 -5 -5 -4 -4 -4 -4 -4 -3 -3 -2 -1 -1 -------- Run | Yrd Mat Min Mat Min Exi Min Mat Fac Fac Ext Cet Arc Hub Fac Upp Upp Zhi Pro Fac Upp Upp War Pro Res Res Acc Com Total Allies 30 | . . . . 2 . . . . 1 20 5 . . 2 . . . . . . . . . . . . . Largest Group 18 | . . . . 2 2 . . . . 14 18 11 . 2 . . . . . . . . . . . . . Highest-Rated Group 987 | . . . . 43 43 . . . . 544 987 626 . 20 . . . . . . . . . . . . . Highest-Rated Ally 159 | . . . . 31 31 . . . . 159 159 159 . 10 . . . . . . . . . . . . . Total Orders 2 | . . . . . . . . . 1 . . . . 1 . . . . . . . . . . . . . STAY 2 | . . . . . . . . . 1 . . . . 1 . . . . . . . . . . . . . Ally Attacks 165 | . . . . . . . . . . 97 68 . . . . . . . . . . . . . . . . Total Damage 3229 | . . . . . . . . . . 1469 1760 . . . . . . . . . . . . . . . . Kills 25 | . . . . . . . . . . 15 10 . . . . . . . . . . . . . . . . Allies Corrupted . | . . . . . . . . . . . . . . . . . . . . . . . . . . . . Allies Melted 1 | . . . . . . . . . . 1 . . . . . . . . . . . . . . . . . Intel | -11 -10 -10 -9 -9 -9 -8 -8 -7 -6 -6 -6 -6 -6 -5 -5 -5 -5 -4 -4 -4 -4 -4 -3 -3 -2 -1 -1 ------- Run | Yrd Mat Min Mat Min Exi Min Mat Fac Fac Ext Cet Arc Hub Fac Upp Upp Zhi Pro Fac Upp Upp War Pro Res Res Acc Com Active Infowar (turns) 7371 | . . . . . . . 182 900 366 885 437 34 169 1050 154 110 60 162 962 69 155 83 139 192 191 500 571 Optics 7371 | . . . . . . . 182 900 366 885 437 34 169 1050 154 110 60 162 962 69 155 83 139 192 191 500 571 Sensors 1890 | . . . . . . . . . . . . . . 1 154 110 58 162 924 69 155 83 139 35 . . . Structural 4419 | . . . . . . . . . . . . . 66 1050 154 110 60 162 962 69 155 83 137 192 191 500 528 Robot Analysis Total 4 | . . . . . . . . . . . . . . . . . 4 . . . . . . . . . . Derelict Logs Recovered 4 | . . . . . . . . . . . . . . . . 1 . 2 . . 1 . . . . . . Drone Launches . | . . . . . . . . . . . . . . . . . . . . . . . . . . . . Drone Recoveries . | . . . . . . . . . . . . . . . . . . . . . . . . . . . . Exploration | -11 -10 -10 -9 -9 -9 -8 -8 -7 -6 -6 -6 -6 -6 -5 -5 -5 -5 -4 -4 -4 -4 -4 -3 -3 -2 -1 -1 ------------- Run | Yrd Mat Min Mat Min Exi Min Mat Fac Fac Ext Cet Arc Hub Fac Upp Upp Zhi Pro Fac Upp Upp War Pro Res Res Acc Com Turns Passed 8467 | 25 120 40 205 137 89 133 288 900 366 885 437 34 169 1050 154 110 60 162 962 69 155 83 139 192 191 500 812 Spaces Moved 13421 | 43 156 75 418 227 214 262 520 1397 739 554 258 72 216 1651 349 301 162 463 1850 196 379 310 366 391 314 754 784 Core 1010 | 43 156 75 127 . . . . 394 . 71 . . . . . . . . . . . . . . . 4 140 Treads . | . . . . . . . . . . . . . . . . . . . . . . . . . . . . Legs . | . . . . . . . . . . . . . . . . . . . . . . . . . . . . Wheels . | . . . . . . . . . . . . . . . . . . . . . . . . . . . . Hover 11 | . . . . . . . . . . . . . . . . . . . . . . . . . . . 11 Flight 12400 | . . . 291 227 214 262 520 1003 739 483 258 72 216 1651 349 301 162 463 1850 196 379 310 366 391 314 750 633 Fastest Speed 20 | 50 50 50 34 40 40 34 34 26 27 27 27 30 26 26 30 30 26 26 26 26 26 26 26 26 26 20 29 Average Speed 31 | 50 50 50 39 40 40 39 34 35 27 63 28 31 29 28 30 30 28 26 26 26 26 26 26 26 26 27 38 Slowest Speed 400 | 50 50 50 50 40 40 40 37 115 27 300 110 112 112 32 30 30 30 26 26 26 26 26 26 26 26 200 400 Overloaded Moves 42 | . . . . . . . . . . . . . 26 . . . . . . . . . . . . 4 12 Propulsion Burnouts . | . . . . . . . . . . . . . . . . . . . . . . . . . . . . Robots Hopped 27 | . . . 14 2 . . . 2 5 . . . . . . . . . . . . . . . . 1 3 Potential Cave-ins 41 | . . . . . . . 6 3 . 9 . . . . 3 . . . 2 . . . . . . 12 6 Cave-ins Triggered 3 | . . . . . . . . . . . . . . . . . . . . . . . . . . 1 2 Teleports 1 | . . . . . . . . . . . . . . . . . . . . . . . 1 . . . . Exploration Rate (%) 46 | 3 44 37 55 65 60 73 55 42 22 66 73 73 24 39 49 52 62 73 39 50 60 58 50 14 17 25 24 Regions Visited 27 Branch Regions 17 Pre-discovered Areas 5 | . . . . . . . . . . . . . . . . . 3 2 . . . . . . . . . Known Exits Taken 16 | . 1 . . . . . . . 1 . . . 1 1 1 1 1 1 1 1 1 1 1 1 1 1 . Unknown Exits Taken 11 | 1 . 1 1 1 1 1 1 1 . 1 1 1 . . . . . . . . . . . . . . . Scrap Searched 10 | . . 1 . 1 . 2 . . . . . . . . 2 . . 2 . 1 1 . . . . . . Spaces Dug 378 | . . . . . . . 23 35 12 20 . . 9 34 8 3 . 9 55 2 7 . 39 27 8 57 30 Terrain Destroyed 978 | . . . . . . 22 23 44 28 75 . . 9 34 135 88 . 109 55 2 7 . 100 27 8 119 93 Melee 288 | . . . . . . . 23 35 12 6 . . 9 34 8 3 . 9 55 2 7 . 6 6 8 37 28 Projectile 3 | . . . . . . . . . . . . . . . . . . . . . . . . . . . 3 AOE 687 | . . . . . . 22 . 9 16 69 . . . . 127 85 . 100 . . . . 94 21 . 82 62 Terrain Rammed . | . . . . . . . . . . . . . . . . . . . . . . . . . . . . Walls Destroyed . | . . . . . . . . . . . . . . . . . . . . . . . . . . . . Machines Disabled . | . . . . . . . . . . . . . . . . . . . . . . . . . . . . Actions | -11 -10 -10 -9 -9 -9 -8 -8 -7 -6 -6 -6 -6 -6 -5 -5 -5 -5 -4 -4 -4 -4 -4 -3 -3 -2 -1 -1 --------- Run | Yrd Mat Min Mat Min Exi Min Mat Fac Fac Ext Cet Arc Hub Fac Upp Upp Zhi Pro Fac Upp Upp War Pro Res Res Acc Com Total 16820 | 44 175 76 429 270 216 277 569 1730 875 1053 620 81 298 2166 378 312 175 483 2222 202 418 311 395 462 401 973 1209 Wait 2724 | . 7 . 6 45 3 . 10 247 120 448 362 7 58 455 11 5 . 5 273 . 29 2 18 50 70 162 331 Move 13344 | 42 155 74 392 222 213 261 519 1392 728 553 257 71 215 1650 348 300 161 462 1849 195 378 309 365 390 313 750 780 Hop 22 | . . . 11 2 . . . 2 5 . . . . . . . . . . . . . . . . 1 1 Pick Up 36 | . . 1 3 1 . 1 1 4 2 1 . . 2 5 1 . 4 . 4 . . . . 2 1 . 3 Fast Attach 54 | 2 . . 5 . . 3 3 15 1 . . . 2 5 . . 3 . 4 . . . . 2 2 4 3 Attach 34 | . . . 4 . . 1 1 1 2 2 . . 2 3 1 1 1 . 1 . . . 1 . . . 13 Detach 12 | . . . . . . 1 . . . . 1 1 1 . 1 . . . . . . . . . . . 7 Swap 13 | . 1 . . . . 1 . 3 . 2 . . 3 . . . 1 . . . . . 1 1 . . . Drop 40 | . . . . . . 1 1 6 . 1 . 1 1 5 . . 5 . 4 . . . . 4 1 4 6 Fire 85 | . 12 . 8 . . 3 . 2 3 6 . . . . 8 3 . 7 . . . . 4 1 . 6 22 Melee 400 | . . . . . . 5 34 44 14 17 . 1 14 43 8 3 . 9 72 7 11 . 6 12 14 45 41 Ram 2 | . . 1 . . . . . . . . . . . . . . . . . . . . . . . . 1 Kick . | . . . . . . . . . . . . . . . . . . . . . . . . . . . . Crush . | . . . . . . . . . . . . . . . . . . . . . . . . . . . . Escape Stasis 30 | . . . . . . . . 14 . . . . . . . . . . 15 . . . . . . 1 . Rewire 24 | . . . . . . . . . . 23 . . . . . . . . . . . . . . . . 1 Trap . | . . . . . . . . . . . . . . . . . . . . . . . . . . . . Miscellaneous . | . . . . . . . . . . . . . . . . . . . . . . . . . . . . Route ------- -11/Scrapyard -10/Materials (discovered 4 exits: *Mat x2 / *Min x2) -10/Mines -9/Materials (discovered 3 exits: [*Min x2] / [*Sto]) -9/Mines -9/Exiles -8/Mines -8/Materials -7/Factory (discovered 3 exits: *Fac x2 / [*Low]) -6/Factory (discovered 4 exits: *Low x2 / *Ext x2) -6/Extension (discovered 2 exits: *Fac / *Cet) -6/Cetus (discovered 2 exits: *Fac / [*Arc]) -6/Archives (discovered 2 exits: *Fac / *Hub) -6/Hub_04(d) (discovered 4 exits: *Fac x4) -5/Factory (discovered 3 exits: *Fac / *Upp x2) -5/Upper Caves -5/Upper Caves (discovered 2 exits: *Fac / *Zhi) -5/Zhirov -4/Proximity Caves -4/Factory (discovered 4 exits: *Res x2 / *Upp x2) -4/Upper Caves -4/Upper Caves (discovered 2 exits: *Res / *War) -4/Warlord -3/Proximity Caves -3/Research (discovered 4 exits: *Res x3 / Tes) -2/Research (discovered 3 exits: *Acc x3) -1/Access -1/Command History --------- Turn | Location | Event 4 | -11/Scrapyard | Discovered new exit (range 15) 26 | -11/Scrapyard | Entered Materials 108 | -10/Materials | Discovered new exit (range 8) 110 | -10/Materials | Identified exit to Mines 131 | -10/Materials | Core integrity fell below 50% 140 | -10/Materials | Discovered new exit (range 12) 146 | -10/Materials | Entered Mines 178 | -10/Mines | Discovered new exit (range 16) 186 | -10/Mines | Core integrity fell below 20% 186 | -10/Mines | Entered Materials 186 | -9/Materials | Evolved 2 slots: Propulsion x1, Utility x1 220 | -9/Materials | Discovered new exit (range 14) 373 | -9/Materials | Discovered new exit (range 5) 385 | -9/Materials | Discovered new exit (range 15) 391 | -9/Materials | Entered Mines 421 | -9/Mines | Lost 7 parts (1p5n1w) 437 | -9/Mines | Found a Scrap Suit stashed away for nefarious purposes 489 | -9/Mines | Deemed a non-threat by the Exiles lab entrance 489 | -9/Mines | Discovered new exit (range 5) 528 | -9/Mines | Entered Exiles 528 | -9/Exiles | Accompanied by 2 allies 539 | -9/Exiles | Met 8R-AWN 545 | -9/Exiles | Met EX-HEX 558 | -9/Exiles | Led the pair of lost Derelicts to a safe place 558 | -9/Exiles | Met EX-BIN 565 | -9/Exiles | Aligned with FarCom system 566 | -9/Exiles | Given EX-Vault access code 575 | -9/Exiles | Opened EX-Vault 585 | -9/Exiles | Warned to stay clear of 0b10 Research branches 598 | -9/Exiles | Met EX-DEC 611 | -9/Exiles | Discovered new exit (range 14) 617 | -9/Exiles | Entered Mines 619 | -8/Mines | Core integrity fell below 50% 667 | -8/Mines | Build established: Mutant 737 | -8/Mines | Discovered new exit (range 14) 750 | -8/Mines | Entered Materials 750 | -8/Materials | Evolved 2 slots: Propulsion x1, Utility x1 1034 | -8/Materials | Discovered new exit (range 20) 1038 | -8/Materials | Entered Factory 1038 | -7/Factory | Evolved 2 slots: Utility x2 1057 | -7/Factory | Discovered new exit (range 12) 1290 | -7/Factory | Discovered new exit (range 16) 1373 | -7/Factory | Build established: Hacker-Mutant 1384 | -7/Factory | Garrison activated, responded to threat 1488 | -7/Factory | Fabricated Hacking Suite (x1) 1526 | -7/Factory | Fabricated Hacking Suite (x1) 1565 | -7/Factory | Fabricated Hacking Suite (x1) 1830 | -7/Factory | Build established: Hacker-Sprinter 1853 | -7/Factory | Discovered new exit (range 12) 1909 | -7/Factory | Fabricated Hacking Suite? 1938 | -7/Factory | Entered another Factory area 1938 | -6/Factory | Evolved 2 slots: Utility x2 1946 | -6/Factory | Identified exit to Lower Caves 1946 | -6/Factory | Identified exit to Extension 2013 | -6/Factory | Fabricated Stasis Canceller (x2) 2059 | -6/Factory | Fabricated Hacking Suite (x1) 2252 | -6/Factory | Build established: Wizard-Sprinter 2304 | -6/Factory | Entered Extension 2336 | -6/Extension | Rescued a captive Derelict 2359 | -6/Extension | Rescued a captive Derelict 2395 | -6/Extension | Rescued a captive Derelict 2396 | -6/Extension | Rescued a captive Derelict 2574 | -6/Extension | Spotted B-75 Beast 2667 | -6/Extension | Rescued a captive Derelict 2949 | -6/Extension | Rescued a captive Derelict 2950 | -6/Extension | Rescued a captive Derelict 2986 | -6/Extension | Rescued a captive Derelict 2986 | -6/Extension | Rescued a captive Derelict 3014 | -6/Extension | Rescued A7 3083 | -6/Extension | Discovered new exit (range 10) 3083 | -6/Extension | Discovered new exit (range 6) 3189 | -6/Extension | Entered Cetus 3189 | -6/Cetus | Accompanied by 14 allies (A7) 3194 | -6/Cetus | Acquired a Cetus Manufacturing Module code from A7 3220 | -6/Cetus | Spotted Cetus Guard 3220 | -6/Cetus | Spotted Cetus Guard 3220 | -6/Cetus | Allies destroyed Cetus Guard 3223 | -6/Cetus | Spotted Cetus Guard 3224 | -6/Cetus | Allies destroyed Cetus Guard 3225 | -6/Cetus | Spotted Cetus Guard 3232 | -6/Cetus | Allies destroyed Cetus Guard 3236 | -6/Cetus | Allies destroyed Cetus Guard 3269 | -6/Cetus | Escorted A7 to Cetus Mainframe 3273 | -6/Cetus | Started Cetus Manufacturing Module 3298 | -6/Cetus | Manufactured an Enhanced Grunt 3323 | -6/Cetus | Manufactured an Enhanced Grunt 3348 | -6/Cetus | Manufactured an Enhanced Grunt 3373 | -6/Cetus | Manufactured an Enhanced Grunt 3398 | -6/Cetus | Manufactured an Enhanced Grunt 3445 | -6/Cetus | Discovered new exit (range 19) 3505 | -6/Cetus | Spotted Cetus Guard 3506 | -6/Cetus | Spotted Cetus Guard 3529 | -6/Cetus | Spotted Cetus Guard 3530 | -6/Cetus | Allies destroyed Cetus Guard 3531 | -6/Cetus | Spotted Cetus Guard 3533 | -6/Cetus | Allies destroyed Cetus Guard 3535 | -6/Cetus | Allies destroyed Cetus Guard 3541 | -6/Cetus | Discovered new exit (range 20) 3544 | -6/Cetus | Met Revision 17 3560 | -6/Cetus | Lost 7 allies 3626 | -6/Cetus | Entered Archives 3626 | -6/Archives | Accompanied by 11 allies (A7) 3631 | -6/Archives | Received a hacking code to weaken MAIN.C 3642 | -6/Archives | Met Zhirov 3645 | -6/Archives | Discovered new exit (range 14) 3648 | -6/Archives | Reinforcements dispatched to Archives 3654 | -6/Archives | Discovered new exit (range 20) 3660 | -6/Archives | Entered Hub_04(d) 3666 | -6/Hub_04(d) | Spotted B-75 Beast 3821 | -6/Hub_04(d) | Identified exit to Factory 3829 | -6/Hub_04(d) | Entered Factory 3829 | -5/Factory | Evolved 2 slots: Utility x2 3835 | -5/Factory | Identified exit to Upper Caves 4059 | -5/Factory | Build established: Wizard-Scout 4176 | -5/Factory | Fabricated VTOL Module (x2) 4232 | -5/Factory | Lost 3 parts (1p1n1u) 4324 | -5/Factory | Discovered new exit (range 12) 4372 | -5/Factory | Repaired Cld. Cesium-ion Thruster 4472 | -5/Factory | Fabricated Micro-nuke Launcher? 4845 | -5/Factory | Identified exit to Factory 4879 | -5/Factory | Entered Upper Caves 4880 | -5/Upper Caves | Encountered a Warlord checkpoint 5030 | -5/Upper Caves | Discovered new exit (range 13) 5033 | -5/Upper Caves | Identified exit to Upper Caves 5033 | -5/Upper Caves | Entered another Upper Caves area 5039 | -5/Upper Caves | Discovered exit to Factory (range 10) 5058 | -5/Upper Caves | Learned Factory security intel 5109 | -5/Upper Caves | Spotted B-75 Beast 5140 | -5/Upper Caves | Discovered new exit (range 11) 5143 | -5/Upper Caves | Identified exit to Zhirov 5143 | -5/Upper Caves | Entered Zhirov 5143 | -5/Zhirov | Discovered new exit (range 3) 5156 | -5/Zhirov | Learned location of Quarantine (-2) 5156 | -5/Zhirov | Learned location of Testing (-3) 5156 | -5/Zhirov | Learned location of Command (-1) 5166 | -5/Zhirov | Found Alien Artifact 5166 | -5/Zhirov | Identified Integrated Dissipator 5166 | -5/Zhirov | Installed Integrated Dissipator, increased core heat dissipation (+20) 5173 | -5/Zhirov | Found Alien Artifact 5203 | -5/Zhirov | Identified exit to Proximity Caves 5203 | -5/Zhirov | Entered Proximity Caves 5270 | -4/Proximity Caves | Spotted B-86 Titan 5362 | -4/Proximity Caves | Discovered exit to Factory (range 12) 5365 | -4/Proximity Caves | Entered Factory 5365 | -4/Factory | Evolved 2 slots: Utility x2 5533 | -4/Factory | Discovered new exit (range 10) 5538 | -4/Factory | Identified exit to Research 5592 | -4/Factory | Repaired Imp. Sensor Array 5624 | -4/Factory | Repaired Phasing Sabre 5647 | -4/Factory | Discovered exit to Research (range 8) 5696 | -4/Factory | Fabricated Particle Accelerator? 5953 | -4/Factory | Fabricated Particle Accelerator (x1) 6030 | -4/Factory | Fabricated Cld. Phase Cannon? 6119 | -4/Factory | Identified exit to Upper Caves 6327 | -4/Factory | Entered Upper Caves 6348 | -4/Upper Caves | Spotted B-86 Titan 6390 | -4/Upper Caves | Discovered new exit (range 3) 6391 | -4/Upper Caves | Identified exit to Upper Caves 6396 | -4/Upper Caves | Entered another Upper Caves area 6400 | -4/Upper Caves | Encountered a Warlord checkpoint 6410 | -4/Upper Caves | Discovered exit to Research (range 4) 6427 | -4/Upper Caves | Learned 12 Research zone layouts 6545 | -4/Upper Caves | Discovered new exit (range 9) 6547 | -4/Upper Caves | Identified exit to Warlord 6551 | -4/Upper Caves | Entered Warlord 6603 | -4/Warlord | Met Warlord 6627 | -4/Warlord | Opened side exit 6628 | -4/Warlord | Warlord's base attacked by MAIN.C 6632 | -4/Warlord | Discovered new exit (range 9) 6634 | -4/Warlord | Identified exit to Proximity Caves 6634 | -4/Warlord | Entered Proximity Caves 6634 | -3/Proximity Caves | Identified Transdimensional Reconstructor 6634 | -3/Proximity Caves | Warped through subspace 6760 | -3/Proximity Caves | Discovered exit to Research (range 18) 6773 | -3/Proximity Caves | Entered Research 6773 | -3/Research | Evolved 2 slots: Propulsion x2 6774 | -3/Research | Identified exit to Research 6774 | -3/Research | Identified exit to Testing 6965 | -3/Research | Entered another Research area 6965 | -2/Research | Warlord forces began assault on 0b10 6965 | -2/Research | Evolved 2 slots: Propulsion x2 6987 | -2/Research | Identified exit to Access 7061 | -2/Research | Met up with Warlord 7075 | -2/Research | Research machine network offline 7097 | -2/Research | Fabricated Hacking Suite (x1) 7156 | -2/Research | Entered Access 7156 | -1/Access | Evolved 2 slots: Utility x2 7161 | -1/Access | Lost 6 allies 7189 | -1/Access | Identified exit to Command 7502 | -1/Access | Crushed by falling debris 7656 | -1/Access | Search patrols dispatched 7656 | -1/Access | Entered Command 7840 | -1/Command | Disengaged cave seal 7840 | -1/Command | Derelicts emerged from the dark tunnel 7840 | -1/Command | Welcomed Warlord to Command 7847 | -1/Command | Spotted B-99 Colossus 7873 | -1/Command | Phase Generator disabled 7993 | -1/Command | Spotted B-99 Colossus 8142 | -1/Command | Warlord commented on Warlord statues 8148 | -1/Command | Spotted Combat Programmer 8148 | -1/Command | Spotted Combat Programmer 8161 | -1/Command | Crushed by falling debris 8161 | -1/Command | System corruption reached 10% 8162 | -1/Command | Warlord destroyed during the assault 8192 | -1/Command | Crushed by falling debris 8231 | -1/Command | System corruption reached 30% 8258 | -1/Command | Lost 11 parts (1p3n6u1w) 8279 | -1/Command | Met MAIN.C 8293 | -1/Command | Hacked MAIN.C using A7's code 8317 | -1/Command | 0b10 Conduit disabled 8348 | -1/Command | Lost 6 parts (2n2u2w) 8373 | -1/Command | Core integrity fell below 50% 8429 | -1/Command | Spotted M Guard 8429 | -1/Command | Spotted M Guard 8447 | -1/Command | Core integrity fell below 20% 8468 | -1/Command | Destroyed by Combat Programmer with EMDS Last Messages --------------- Penetrated by EMDS Slug. Attempting to rewire Warlord D3-CKR. Warlord D3-CKR cannot be rewired. EMDS Slug penetrates Wall. Penetrated by EMDS Slug. EMDS Slug penetrates Wall. Penetrated by EMDS Slug. Door malfunctions. Penetrated by EMDS Slug. EMDS Slug penetrates Wall. Penetrated by EMDS Slug. Adv. Signal Interpreter destroyed. Penetrated by EMDS Slug. Penetrated by Slug. Slug penetrates Wall. Penetrated by Slug. Slug penetrates Wall. Penetrated by Slug. EMDS Slug penetrates Wall. Penetrated by EMDS Slug. Map ----- +----------------------------------------------------+ | ????????????????????????????????????????????##???? | | ??????????????????????????????????##########"#???? | | ??????????????????????????????????# """" ###### | | ???????????????????????## ?? ???# ""R"" + | | ??????????????????????? # ?# ""*"" ###### | | ??????????????????????? # ?# #????? | | ??????????????????????? # / #???? | | ??????????????????????? + # #????" | | ??????????????????????? # ?# #???? | | ??????????????????????? # ?# #???? | | ??????????????????????? # ?###########???? | | ??????????????????????? # ???????????????? | | ??????????????????????? # ???????????????? | | ???????????????????????## ?????????####??? | | ???????????????????????## #??# | | ??????????????????????? # ############ #??# | | ?????????????????????#### ## # #### | | ?????????????????????## # =## * # | | ???????????????? ###### # "" # | | ???????????????? ###### % [* """" # | | ???????????????? + ![ " =*""" + | | ???????????????? ##??## %[%#=!% "" # | | ?????????????????????## " [% # | | ?????????????????????####### # # | | ?????????????############### ####### ### | | ?????? ?????# @## ######" ### | | ?????? ?????# ## ##???#" ######## | | ?????? ?????# ## ####### ###?### | | ????## ##???# ## #######+# ##???# | | ????## ##???# ## " ###???# | | ????## ##???# ## # ##????# | | ????## ##???# ## # "" ##????# | | ????## ##???# ## #] """ ##????# | | ????## ##???# ## # "T ##????# | | ????## ##???# ## # """ ####### | | ????## ##???# / "" + | | ????## ##???# ## # ######## | | ????## ##???#####+ # #; # # ######## | | ????## ##??????## ######+######## | | ##??## ##??????## % % ###### """"" | | ##??## ##??????## p % %BB#### ""T"" | | ###### ##########p % % BB#### | | ###### ########## "" " %"##### | | / ""T"" % # "" | | / "" % # """" | | / % % + """" | | / # "" | | / # | | ###### ##+############ "#"## # | | ###### # ##### "#### # | +----------------------------------------------------+ Best States ------------- Heat Dissipation 72 Energy Generation 25 Energy Capacity 190 Matter Stores 300 Matter Capacity 300 Sight Range 20 Robot Scan Range 15 Terrain Scan Density 10 Armor Coverage 80 Evasion (%) 76 Particle Charging 45 Offensive Hacking 86 Defensive Hacking 10 Authchip Count 3 Item Schematics ----------------- Hacking Suite | -8/Materials | Hacked VTOL Module | -7/Factory | Hacked Stasis Canceller | -6/Factory | Hacked Imp. Datajack | -6/Factory | Hacked Micro-nuke Launcher | -5/Factory | Hacked Assault Drone Bay | -5/Zhirov | Free Exp. Heat Sink | -5/Zhirov | Free Exp. Optical Array | -5/Zhirov | Free Imp. Arc Thrower | -5/Zhirov | Free Particle Accelerator | -4/Factory | Hacked Cld. Phase Cannon | -4/Factory | Hacked Robot Schematics ------------------ None Fabricated ------------ Hacking Suite | x1 | -7/Factory | Authchip Hacking Suite | x1 | -7/Factory | Authchip Hacking Suite | x1 | -7/Factory | Authchip Hacking Suite | x1 | -7/Factory Stasis Canceller | x2 | -6/Factory Hacking Suite | x1 | -6/Factory | Authchip VTOL Module | x2 | -5/Factory Micro-nuke Launcher | x1 | -5/Factory Particle Accelerator | x1 | -4/Factory Particle Accelerator | x1 | -4/Factory Cld. Phase Cannon | x1 | -4/Factory Hacking Suite | x1 | -2/Research Repaired ---------- Cld. Cesium-ion Thruster | 26% | -5/Factory Imp. Sensor Array | 40% | -4/Factory Phasing Sabre | 60% | -4/Factory Studied --------- None Alien Tech Used ----------------- Integrated Dissipator Transdimensional Reconstructor Achievements -------------- This Is My Hole Challenges ------------ None Game ------ Seed ThrusterAlertLaser Manual? 0 Play Time 02:30:14 Cumulative 349.4 hours Start 2025.10.26 @ 18:53:12 End 2025.10.27 @ 12:44:00 Sessions 3 Manual Loads 0 Difficulty Rogue Special Mode None Game No. 327 Rogue 138 Adventurer 177 Explorer 12 Win Type - Total 72 Types 22/2/17/2/12/0/5/6/0/6 Lore% 59 Gallery% 57 Achievement% 50 Wizard Run 0 Options --------- Layout 0 ASCII 0 Keyboard 0 Movement Numpad Keybinds 0 Fullscreen 2 Font 12/Smallcaps Map View 83x54 Zoom Use 0% Tactical HUD 0 Map Filters NONE Filters NONE Steam 1 RUN: 4375bf42-52f5-4295-8d96-488c65665191